[Event "DEN-chT XtraCon 2018-19"]
[Site "Denmark"]
[Date "2018.10.27"]
[Round "1"]
[White "Firooznia, Farzam"]
[Black "Sobjerg, Erik"]
[Result "1/2-1/2"]
[ECO "B24"]
[WhiteElo "2087"]
[BlackElo "2242"]
[Annotator "NA"]
[PlyCount "44"]
[EventDate "2018.10.27"]
[EventType "team-tourn"]
[EventCountry "DEN"]
[SourceTitle "playchess.com"]
[Source "ChessBase"]
[SourceQuality "1"]
[TimeControl "40/5400+30:1800+30"]

1. e4 {[%emt 0:00:00]} c5 {[%emt 0:00:00]} 2. Nc3 {[%emt 0:00:00]} Nc6 {[%emt 0:00:00]} 3. Bb5 {[%emt 0:00:00]} Nd4 {[%emt 0:00:17]} 4. Bc4 {[%emt 0:00:51]} e6 {[%emt 0:01:16]} 5. Nge2 {[%emt 0:00:58]} Nf6 {[%emt 0:01:32]} 6. O-O {[%emt 0:02:05]} a6 {[%emt 0:01:17]} 7. d3 {[%emt 0:01:07]} b5 {[%emt 0:01:03]} 8. Bb3 {[%emt 0:01:02]} Nxb3 {[%emt 0:02:13]} 9. axb3 {[%emt 0:00:50]} Bb7 {[%emt 0:01:09]} 10. Qe1 {[%emt 0:13:47]} d5 {[%emt 0:05:48]} 11. e5 {[%emt 0:01:37]} d4 {[%emt 0:13:02]} 12. exf6 {[%emt 0:07:52]} dxc3 {[%emt 0:00:48]} 13. Nxc3 {[%emt 0:16:35]} gxf6 {[%emt 0:03:56]} 14. f3 {[%emt 0:01:33]} f5 {[%emt 0:11:35]} 15. Qe5 {[%emt 0:06:24]} Qd4+ {[%emt 0:11:55]} 16. Qxd4 {[%emt 0:01:31]} cxd4 {[%emt 0:00:02]} 17. Ne2 {[%emt 0:01:20]} Bc5 {[%emt 0:00:52]} 18. Bg5 {[%emt 0:01:23]} O-O {[%emt 0:16:37]} 19. Bf6 {[%emt 0:02:34]} e5 {[%emt 0:00:50]} 20. f4 {[%emt 0:10:41]} e4 {[%emt 0:03:16]} 21. Bxd4 {[%emt 0:05:22]} exd3 {[%emt 0:02:47]} 22. cxd3 {[%emt 0:04:22]} Rfe8 {[%emt 0:03:18]} 1/2-1/2

[Event "DEN-chT XtraCon 2018-19"]
[Site "Denmark"]
[Date "2018.10.27"]
[Round "1"]
[White "Bjerre, Tavs"]
[Black "Pallesen, Jacob"]
[Result "1-0"]
[ECO "D45"]
[WhiteElo "2039"]
[BlackElo "2024"]
[Annotator "NA"]
[PlyCount "43"]
[EventDate "2018.10.27"]
[EventType "team-tourn"]
[EventCountry "DEN"]
[SourceTitle "playchess.com"]
[Source "ChessBase"]
[SourceQuality "1"]
[TimeControl "40/5400+30:1800+30"]

1. d4 {[%emt 0:00:00]} d5 {[%emt 0:01:18]} 2. c4 {[%emt 0:00:00]} e6 {[%emt 0:00:23]} 3. Nc3 {[%emt 0:00:12]} c6 {[%emt 0:01:53]} 4. e3 {[%emt 0:01:44]} Nf6 {[%emt 0:05:09]} 5. Nf3 {[%emt 0:00:32]} Nbd7 {[%emt 0:02:23]} 6. b3 {[%emt 0:04:32]} Bb4 {[%emt 0:03:51]} 7. Bd2 {[%emt 0:04:26]} O-O {[%emt 0:04:18]} 8. Bd3 {[%emt 0:05:07]} a6 {[%emt 0:07:38]} 9. O-O {[%emt 0:03:04]} Bd6 {[%emt 0:05:41]} 10. e4 {[%emt 0:05:07]} dxe4 {[%emt 0:04:21]} 11. Nxe4 {[%emt 0:00:39]} Nxe4 {[%emt 0:04:32]} 12. Bxe4 {[%emt 0:00:07]} Nf6 {[%emt 0:05:15]} 13. Bc2 {[%emt 0:04:09]} c5 {[%emt 0:09:32]} 14. Bc3 {[%emt 0:02:35]} cxd4 {[%emt 0:14:46]} 15. Bxd4 {[%emt 0:01:19]} Be7 {[%emt 0:01:36]} 16. Qd3 {[%emt 0:09:44]} g6 {[%emt 0:01:13]} 17. Rad1 {[%emt 0:02:01]} Qa5 {[%emt 0:04:19]} 18. Bc3 {[%emt 0:16:04]} Qc7 {[%emt 0:06:57]} 19. Ne5 {[%emt 0:14:39]} b6 {[%emt 0:02:11]} 20. Qg3 {[%emt 0:03:20]} Nh5 {[%emt 0:03:59]} 21. Ng4 {[%emt 0:02:02]} Nxg3 {[%emt 0:05:12]} 22. Nh6# {[%emt 0:00:42]} 1-0

[Event "DEN-chT XtraCon 2018-19"]
[Site "Denmark"]
[Date "2018.10.27"]
[Round "1"]
[White "Svendsen, Peter Willer"]
[Black "Pedersen, Gunnar"]
[Result "0-1"]
[ECO "D02"]
[WhiteElo "1948"]
[BlackElo "2196"]
[Annotator "NA"]
[PlyCount "64"]
[EventDate "2018.10.27"]
[EventType "team-tourn"]
[EventCountry "DEN"]
[SourceTitle "playchess.com"]
[Source "ChessBase"]
[SourceQuality "1"]
[TimeControl "40/5400+30:1800+30"]

1. d4 {[%emt 0:00:00]} d5 {[%emt 0:01:14]} 2. Nf3 {[%emt 0:00:30]} Nf6 {[%emt 0:01:04]} 3. Bf4 {[%emt 0:01:17]} e6 {[%emt 0:01:57]} 4. e3 {[%emt 0:01:03]} Bd6 {[%emt 0:00:36]} 5. Ne5 {[%emt 0:05:03]} O-O {[%emt 0:11:56]} 6. Bd3 {[%emt 0:04:44]} c5 {[%emt 0:05:30]} 7. c3 {[%emt 0:08:15]} Nc6 {[%emt 0:05:26]} 8. Nd2 {[%emt 0:05:08]} Qc7 {[%emt 0:09:09]} 9. Ndf3 {[%emt 0:03:04]} c4 {[%emt 0:14:20]} 10. Bc2 {[%emt 0:00:37]} b5 {[%emt 0:00:52]} 11. O-O {[%emt 0:08:17]} a5 {[%emt 0:03:49]} 12. Qe2 {[%emt 0:19:53]} Bb7 {[%emt 0:05:21]} 13. Nxc6 {[%emt 0:15:10]} Bxc6 {[%emt 0:14:37]} 14. Bxd6 {[%emt 0:01:35]} Qxd6 {[%emt 0:00:10]} 15. Ne5 {[%emt 0:00:54]} b4 {[%emt 0:05:08]} 16. Rfe1 {[%emt 0:02:39]} Rab8 {[%emt 0:01:13]} 17. Rab1 {[%emt 0:05:41]} Rfc8 {[%emt 0:01:48]} 18. g4 {[%emt 0:08:59]} Be8 {[%emt 0:10:44]} 19. g5 {[%emt 0:00:54]} Nd7 {[%emt 0:00:31]} 20. f4 {[%emt 0:01:25]} Nxe5 {[%emt 0:00:23]} 21. fxe5 {[%emt 0:01:12]} Qe7 {[%emt 0:00:04]} 22. Qg4 {[%emt 0:00:36]} bxc3 {[%emt 0:01:19]} 23. bxc3 {[%emt 0:00:13]} Qa3 {[%emt 0:00:52]} 24. Qh3 {[%emt 0:01:54]} g6 {[%emt 0:00:27]} 25. e4 {[%emt 0:02:07]} Bc6 {[%emt 0:00:43]} 26. exd5 {[%emt 0:00:51]} Bxd5 {[%emt 0:00:07]} 27. Rxb8 {[%emt 0:00:51]} Rxb8 {[%emt 0:00:06]} 28. Be4 {[%emt 0:00:24]} Bxe4 {[%emt 0:00:15]} 29. Rxe4 {[%emt 0:00:12]} Qc1+ {[%emt 0:00:21]} 30. Kf2 {[%emt 0:00:39]} Rb1 {[%emt 0:02:28]} 31. Re2 {[%emt 0:00:36]} Qf4+ {[%emt 0:00:30]} 32. Kg2 {[%emt 0:00:36]} Qf1+ {[%emt 0:00:16]} 0-1

[Event "DEN-chT XtraCon 2018-19"]
[Site "Denmark"]
[Date "2018.11.18"]
[Round "3"]
[White "David, Alberto"]
[Black "Rostgaard, Tobias Valentin"]
[Result "1-0"]
[ECO "A05"]
[WhiteElo "2555"]
[BlackElo "2372"]
[Annotator "ChessBase"]
[PlyCount "79"]
[EventDate "2018.10.27"]
[EventType "team-tourn"]
[EventCountry "DEN"]
[SourceTitle "playchess.com"]
[Source "ChessBase"]
[SourceQuality "1"]
[TimeControl "40/5400+30:1800+30"]

1. Nf3 {[%emt 0:00:01]} Nf6 {[%emt 0:00:09]} 2. g3 {[%emt 0:00:44]} g6 {[%emt 0:01:06]} 3. Bg2 {[%emt 0:04:01]} Bg7 {[%emt 0:00:07]} 4. O-O {[%emt 0:00:05]} O-O {[%emt 0:00:06]} 5. d3 {[%emt 0:01:48]} c5 {[%emt 0:01:18]} 6. e4 {[%emt 0:00:37]} Nc6 {[%emt 0:00:11]} 7. c3 {[%emt 0:02:01]} d6 {[%emt 0:01:31]} 8. Re1 {[%emt 0:02:04]} Rb8 {[%emt 0:01:10]} 9. h3 {[%emt 0:04:59]} b5 {[%emt 0:01:36]} 10. d4 {[%emt 0:05:05]} Nd7 {[%emt 0:01:40]} 11. a3 {[%emt 0:16:00]} e5 {[%emt 0:06:24]} 12. Be3 {[%emt 0:05:46]} exd4 {[%emt 0:00:11]} 13. cxd4 {[%emt 0:00:03]} Na5 {[%emt 0:01:39]} 14. Nc3 {[%emt 0:02:42]} h6 {[%emt 0:11:41]} 15. Bf4 {[%emt 0:11:45]} Nc4 {[%emt 0:04:27]} 16. dxc5 {[%emt 0:07:22]} Nxc5 {[%emt 0:02:26]} 17. Qc2 {[%emt 0:05:32]} g5 {[%emt 0:06:45]} 18. Bc1 {[%emt 0:00:44]} Be6 {[%emt 0:01:53]} 19. Rb1 {[%emt 0:05:45]} f5 {[%emt 0:02:11]} 20. b4 {[%emt 0:04:59]} Nxe4 {[%emt 0:05:15]} 21. Nxe4 {[%emt 0:02:38]} fxe4 {[%emt 0:00:06]} 22. Qxe4 {[%emt 0:00:17]} Bf5 {[%emt 0:00:18]} 23. Qd5+ {[%emt 0:00:05]} Kh8 {[%emt 0:00:27]} 24. Rb3 {[%emt 0:00:15]} Qf6 {[%emt 0:07:39]} 25. Bd2 {[%emt 0:04:59]} Nxd2 {[%emt 0:00:31]} 26. Qxd2 {[%emt 0:00:21]} Rbc8 {[%emt 0:01:54]} 27. Rbe3 {[%emt 0:02:27]} Rc2 {[%emt 0:13:50]} 28. Qd5 {[%emt 0:00:08]} Bd7 {[%emt 0:01:16]} 29. Qb7 {[%emt 0:06:44]} Bc6 {[%emt 0:08:01]} 30. Qxa7 {[%emt 0:00:05]} Qb2 {[%emt 0:01:08]} 31. Rd3 {[%emt 0:00:58]} Rc3 {[%emt 0:08:23]} 32. Qe3 {[%emt 0:02:30]} Rxd3 {[%emt 0:08:27]} 33. Qxd3 {[%emt 0:00:02]} Qf6 {[%emt 0:00:42]} 34. Re3 {[%emt 0:00:31]} h5 {[%emt 0:00:46]} 35. Qe2 {[%emt 0:00:40]} Kg8 {[%emt 0:01:38]} 36. h4 {[%emt 0:01:43]} Qa1+ {[%emt 0:00:19]} 37. Kh2 {[%emt 0:00:07]} Bxf3 {[%emt 0:00:43]} 38. Rxf3 {[%emt 0:00:58]} Rxf3 {[%emt 0:00:32]} 39. Bxf3 {[%emt 0:01:09]} gxh4 {[%emt 0:00:28]} 40. Qe5 1-0

[Event "DEN-chT XtraCon 2018-19"]
[Site "Denmark"]
[Date "2018.11.18"]
[Round "3"]
[White "Genov, Petar"]
[Black "Nielsen, Thomas Bach"]
[Result "0-1"]
[ECO "E07"]
[WhiteElo "2445"]
[BlackElo "2122"]
[Annotator "ChessBase"]
[PlyCount "80"]
[EventDate "2018.10.27"]
[EventType "team-tourn"]
[EventCountry "DEN"]
[SourceTitle "playchess.com"]
[Source "ChessBase"]
[SourceQuality "1"]
[TimeControl "40/5400+30:1800+30"]

1. Nf3 {[%emt 0:00:08]} d5 {[%emt 0:00:34]} 2. d4 {[%emt 0:00:59]} Nf6 {[%emt 0:01:55]} 3. c4 {[%emt 0:02:06]} e6 {[%emt 0:02:44]} 4. g3 {[%emt 0:03:05]} Be7 {[%emt 0:03:42]} 5. Bg2 {[%emt 0:00:47]} O-O {[%emt 0:01:44]} 6. O-O {[%emt 0:01:44]} Nbd7 {[%emt 0:05:59]} 7. Nbd2 {[%emt 0:09:17]} c6 {[%emt 0:03:40]} 8. b3 {[%emt 0:10:24]} a5 {[%emt 0:04:32]} 9. a3 {[%emt 0:18:53]} b6 {[%emt 0:15:43]} 10. Bb2 {[%emt 0:03:11]} Bb7 {[%emt 0:02:51]} 11. Rc1 {[%emt 0:05:49]} c5 {[%emt 0:05:33]} 12. a4 {[%emt 0:14:59]} Rc8 {[%emt 0:11:47]} 13. e3 {[%emt 0:02:54]} cxd4 {[%emt 0:13:05]} 14. Nxd4 {[%emt 0:03:55]} Nc5 {[%emt 0:02:05]} 15. Qe2 {[%emt 0:03:16]} Re8 {[%emt 0:06:13]} 16. Rfd1 {[%emt 0:01:27]} Bf8 {[%emt 0:01:56]} 17. Nb5 {[%emt 0:02:47]} Qe7 {[%emt 0:02:26]} 18. Ba3 {[%emt 0:06:25]} dxc4 {[%emt 0:01:25]} 19. Bxc5 {[%emt 0:01:38]} Rxc5 {[%emt 0:01:10]} 20. Nxc4 {[%emt 0:01:26]} Bxg2 {[%emt 0:00:20]} 21. Kxg2 {[%emt 0:00:07]} Nd5 {[%emt 0:03:24]} 22. Ncd6 {[%emt 0:02:24]} Rxc1 {[%emt 0:01:56]} 23. Rxc1 {[%emt 0:00:05]} Rd8 {[%emt 0:00:08]} 24. e4 {[%emt 0:01:17]} Qg5 {[%emt 0:00:28]} 25. Qd1 {[%emt 0:02:05]} Bxd6 {[%emt 0:05:11]} 26. exd5 {[%emt 0:00:38]} exd5 {[%emt 0:01:02]} 27. Nxd6 {[%emt 0:01:01]} Rxd6 {[%emt 0:00:02]} 28. Rc8+ {[%emt 0:00:32]} Rd8 {[%emt 0:00:02]} 29. Rc6 {[%emt 0:00:29]} d4 {[%emt 0:01:04]} 30. Rxb6 {[%emt 0:00:05]} d3 {[%emt 0:01:36]} 31. Rb5 {[%emt 0:00:36]} Qe7 {[%emt 0:00:23]} 32. Rf5 {[%emt 0:00:59]} d2 {[%emt 0:00:48]} 33. Kf1 {[%emt 0:00:28]} Qe4 {[%emt 0:00:20]} 34. Rf4 {[%emt 0:00:32]} Qd3+ {[%emt 0:00:08]} 35. Kg2 {[%emt 0:00:22]} Re8 {[%emt 0:00:49]} 36. Rf3 {[%emt 0:00:35]} Qd5 {[%emt 0:00:16]} 37. Kh3 {[%emt 0:00:25]} Re1 {[%emt 0:00:44]} 38. Re3 {[%emt 0:00:39]} Qd7+ {[%emt 0:00:12]} 39. Qg4 {[%emt 0:00:13]} Qxg4+ {[%emt 0:00:16]} 40. Kxg4 {[%emt 0:00:06]} Rxe3 {[%emt 0:00:09]} 0-1

[Event "DEN-chT XtraCon 2018-19"]
[Site "Denmark"]
[Date "2018.11.18"]
[Round "3"]
[White "Borge, Nikolaj"]
[Black "Borovnica, Tihomir"]
[Result "0-1"]
[ECO "C01"]
[WhiteElo "2383"]
[BlackElo "2246"]
[Annotator "NA"]
[PlyCount "86"]
[EventDate "2018.10.27"]
[EventType "team-tourn"]
[EventCountry "DEN"]
[SourceTitle "playchess.com"]
[Source "ChessBase"]
[SourceQuality "1"]
[TimeControl "40/5400+30:1800+30"]

{[%evp 29,85,132,186,171,175,160,165,143,136,151,32767,32767,32767,162,218,204,270,159,139,151,136,32767,32767,32767,32767,32767,32767,32767,32767,32767,32767,-1000,-507,-492,-518,-552,-490,32767,32767,32767,32767,32767,-910,-873,0,-850,0,-800,32767,32767,-901,-862,-915,-994,-879,-982,-879,-2027]} 1. e4 {[%emt 0:00:00]} e6 {[%emt 0:01:24]} 2. d4 {[%emt 0:01:00]} d5 {[%emt 0:00:05]} 3. exd5 {[%emt 0:00:30]} exd5 {[%emt 0:00:05]} 4. Nf3 {[%emt 0:00:10]} Nf6 {[%emt 0:00:45]} 5. Bd3 {[%emt 0:00:30]} c5 {[%emt 0:01:14]} 6. O-O {[%emt 0:01:38] C01: French: Exchange Variation} Nc6 {[%emt 0:06:50]} (6... c4 7. Re1+ Be7 8. Be2 O-O 9. b3 cxb3 10. axb3 Nc6 11. c3 Re8 12. Nbd2 Bd6 13. Bd3 Bg4 14. Rxe8+ Qxe8 {0-1 (52) Fontaine,R (2563)-Carlsen,M (2834) chess.com INT 2018}) 7. Re1+ {[%emt 0:00:20]} Be7 {[%emt 0:00:28]} 8. dxc5 {[%emt 0:10:26]} O-O {[%emt 0:00:07]} 9. Be3 {[%emt 0:09:59]} Bg4 {[%emt 0:03:46]} 10. c3 {[%emt 0:01:34]} Re8 {[%emt 0:01:41]} 11. Nbd2 {[%emt 0:06:40]} Qc7 {[%emt 0:00:20]} 12. Qa4 {[%emt 0:05:13]} Rad8 {[%emt 0:16:43]} 13. b4 $146 {[%emt 0:12:25]} ({Predecessor:} 13. Bf4 Qc8 14. b4 {0-1 (44) Septien Lopez,V (1883)-Zanoletty Garcia,D (1996) Cambrils 2015}) 13... a6 {[%emt 0:20:49]} 14. Qc2 {[%emt 0:06:25]} g6 {[%emt 0:20:41]} 15. a4 {[%emt 0:07:16]} Ra8 {[%emt 0:08:53]} 16. h3 {[%emt 0:02:31]} Bxf3 {[%emt 0:00:16]} 17. Nxf3 {[%emt 0:00:13]} Bf8 {[%emt 0:05:12]} 18. Bf1 {[%emt 0:07:44]} Bg7 {[%emt 0:01:17]} 19. Rad1 {[%emt 0:01:28]} Ne4 {[%emt 0:00:18]} 20. Nd4 {[%emt 0:01:41]} Ne5 {[%emt 0:02:57]} 21. Ne2 {[%emt 0:06:38]} Nc4 {[%emt 0:01:41]} 22. Bf4 {[%emt 0:02:18]} ({Inferior is} 22. Rxd5 Nxe3 23. fxe3 Be5 $11) 22... Qc6 {[%emt 0:00:03]} 23. f3 {[%emt 0:01:03]} Nf6 {[%emt 0:00:27]} 24. Nd4 {[%emt 0:00:21]} Qc8 {[%emt 0:00:13]} 25. Nb3 {[%emt 0:03:56]} Nh5 {[%emt 0:00:22]} 26. Bc1 {[%emt 0:00:27]} Rxe1 {[%emt 0:00:31]} 27. Rxe1 {[%emt 0:00:02]} Qc7 {[%emt 0:00:17]} 28. Nd4 {[%emt 0:06:07]} Be5 {[%emt 0:00:39]} 29. g4 {[%emt 0:01:35]} Bxd4+ {[%emt 0:00:23]} 30. Kh1 {[%emt 0:02:50]} Ng3+ {[%emt 0:00:30]} 31. Kg2 {[%emt 0:00:05]} Nxf1 {[%emt 0:00:06]} 32. Kxf1 {[%emt 0:01:31]} Bg7 {[%emt 0:00:05]} 33. Qd3 {[%emt 0:00:21]} Qg3 {[%emt 0:01:48]} 34. Qxd5 {[%emt 0:00:14]} Qxh3+ $2 {[%emt 0:00:08]} 35. Kg1 $1 {[%emt 0:00:37]} Qg3+ $2 {[%emt 0:00:08]} ({Better is} 35... Bxc3 $19 36. Rf1 Qg3+ 37. Kh1 Ne5) 36. Kf1 {[%emt 0:00:02]} Qh3+ {[%emt 0:00:11]} (36... Ne5 $19 37. Re3 Qh2) 37. Kg1 {[%emt 0:00:01]} Qg3+ {[%emt 0:00:10]} 38. Kf1 {[%emt 0:00:05]} Bxc3 {[%emt 0:00:55]} 39. Re7 {[%emt 0:02:46]} Ne5 {[%emt 0:00:40]} 40. Bd2 {[%emt 0:00:40]} Bxd2 {[%emt 0:00:47]} 41. Rxe5 {[%emt 0:01:37]} Bxb4 {[%emt 0:00:45]} 42. Re7 {[%emt 0:01:37]} Rf8 {[%emt 0:00:25]} 43. Rxb7 {[%emt 0:03:41] [#]} Bxc5 $1 {[%emt 0:00:17]} 0-1

[Event "DEN-chT XtraCon 2018-19"]
[Site "Denmark"]
[Date "2018.11.18"]
[Round "3"]
[White "Kristensen, Bjarke Hautop"]
[Black "Jaksland, Tim"]
[Result "1/2-1/2"]
[ECO "A37"]
[WhiteElo "2179"]
[BlackElo "2254"]
[Annotator "NA"]
[PlyCount "59"]
[EventDate "2018.10.27"]
[EventType "team-tourn"]
[EventCountry "DEN"]
[SourceTitle "playchess.com"]
[Source "ChessBase"]
[SourceQuality "1"]
[TimeControl "40/5400+30:1800+30"]

1. c4 {[%emt 0:00:00]} c5 {[%emt 0:00:16]} 2. g3 {[%emt 0:00:00]} g6 {[%emt 0:00:19]} 3. Bg2 {[%emt 0:00:00]} Bg7 {[%emt 0:00:06]} 4. Nc3 {[%emt 0:00:00]} Nc6 {[%emt 0:00:06]} 5. Nf3 {[%emt 0:00:05]} d6 {[%emt 0:02:12]} 6. O-O {[%emt 0:00:33]} e5 {[%emt 0:07:29]} 7. Ne1 {[%emt 0:01:41]} Nge7 {[%emt 0:00:47]} 8. Nc2 {[%emt 0:00:11]} O-O {[%emt 0:03:47]} 9. Ne3 {[%emt 0:00:15]} Be6 {[%emt 0:04:36] A37: Symmetrical English vs ...g6: 4 Bg2 Bg7 5 Nf3} 10. Ned5 {[%emt 0:01:28]} Rb8 {[%emt 0:01:19]} (10... Qd7 11. d3 Bh3 12. Rb1 Bxg2 13. Kxg2 f5 14. a3 Rac8 15. f3 Rf7 16. b4 Nxd5 17. Nxd5 Ne7 18. Nxe7+ Rxe7 19. Be3 Qe6 20. bxc5 dxc5 {0-1 (72) Lenderman,A (2611)-Le,Q (2737) chess.com INT 2018}) 11. a3 {[%emt 0:01:55]} a6 {[%emt 0:06:14]} 12. b4 {[%emt 0:06:57]} b5 {[%emt 0:23:56]} 13. cxb5 {[%emt 0:04:12]} axb5 {[%emt 0:00:39]} 14. Rb1 {[%emt 0:00:07]} Nxd5 {[%emt 0:09:52]} 15. Nxd5 {[%emt 0:04:39]} Ne7 {[%emt 0:01:04]} 16. Nxe7+ {[%emt 0:02:53]} Qxe7 {[%emt 0:00:05]} 17. d3 {[%emt 0:02:45]} Rfc8 $146 {[%emt 0:08:58]} 18. Be3 {[%emt 0:07:00]} Qa7 {[%emt 0:01:12]} 19. Qc1 {[%emt 0:05:14]} Qa4 {[%emt 0:02:25]} 20. Qb2 {[%emt 0:01:29]} ({White should play} 20. Qd2 $1 $15) 20... c4 {[%emt 0:04:35]} 21. Rfc1 {[%emt 0:01:46]} cxd3 {[%emt 0:08:10]} 22. exd3 {[%emt 0:00:21]} Qa6 {[%emt 0:00:35]} 23. Rxc8+ {[%emt 0:07:00]} Rxc8 {[%emt 0:00:05]} 24. Rc1 {[%emt 0:00:06]} Bf5 {[%emt 0:01:49]} 25. Rc3 {[%emt 0:04:41]} Rxc3 $14 {[%emt 0:03:06]} 26. Qxc3 {[%emt 0:00:05]} Qa4 {[%emt 0:00:26]} (26... h5 $14) 27. Bf1 {[%emt 0:06:49]} Qd1 {[%emt 0:01:38]} 28. Qc1 {[%emt 0:01:00]} Qxc1 {[%emt 0:00:34]} 29. Bxc1 {[%emt 0:00:05]} Bd7 {[%emt 0:01:06]} 30. Bg2 {[%emt 0:01:08]} 1/2-1/2

[Event "DEN-chT XtraCon 2018-19"]
[Site "Denmark"]
[Date "2018.11.18"]
[Round "3"]
[White "Ostergaard, Jens"]
[Black "Skaanning-Pedersen, Kim Henrik"]
[Result "1-0"]
[ECO "A40"]
[WhiteElo "2174"]
[BlackElo "2207"]
[Annotator "NA"]
[PlyCount "72"]
[EventDate "2018.10.27"]
[EventType "team-tourn"]
[EventCountry "DEN"]
[SourceTitle "playchess.com"]
[Source "ChessBase"]
[SourceQuality "1"]
[TimeControl "40/5400+30:1800+30"]

1. d4 {[%emt 0:00:00]} g6 {[%emt 0:00:00]} 2. c4 {[%emt 0:00:00]} Bg7 {[%emt 0:00:00]} 3. e4 {[%emt 0:00:13]} Nc6 {[%emt 0:01:17]} 4. Nf3 {[%emt 0:01:30]} e5 {[%emt 0:02:24]} 5. Be3 {[%emt 0:04:22]} d6 {[%emt 0:02:07]} 6. Nc3 {[%emt 0:04:09]} Bg4 {[%emt 0:01:44]} 7. d5 {[%emt 0:07:44]} Nd4 {[%emt 0:02:51]} 8. Be2 {[%emt 0:01:45]} Bxf3 {[%emt 0:02:53]} 9. Bxf3 {[%emt 0:00:26]} c5 {[%emt 0:00:16]} 10. dxc6 {[%emt 0:06:37] A41: 1 d4 d6: Tartakower System and Modern Defence} bxc6 {[%emt 0:00:35]} 11. O-O {[%emt 0:00:39]} Ne7 {[%emt 0:02:11]} 12. c5 {[%emt 0:06:22]} (12. b4 O-O 13. Rb1 Qc7 14. Bxd4 exd4 15. Ne2 c5 16. b5 Bh6 17. Nc1 Bxc1 18. Qxc1 {½-½ (31) Swiercz,D (2645)-Kempinski,R (2615) Poland 2016}) 12... Nxf3+ $146 {[%emt 0:12:05]} ({Predecessor:} 12... O-O 13. cxd6 Qxd6 14. b3 Rad8 15. Na4 f5 16. Rc1 Qf6 17. Bxd4 Rxd4 18. Qe2 fxe4 19. Bxe4 {1-0 (62) Arvola,B (2471)-Chatalbashev,B (2543) Helsingor 2018}) 13. Qxf3 {[%emt 0:00:49]} d5 {[%emt 0:00:15]} 14. exd5 {[%emt 0:04:06]} cxd5 {[%emt 0:00:41]} 15. Bg5 {[%emt 0:06:11]} d4 {[%emt 0:16:41]} 16. Bxe7 {[%emt 0:10:22]} Kxe7 {[%emt 0:00:53]} 17. Qb7+ {[%emt 0:03:51]} Kf8 {[%emt 0:01:51]} 18. Ne4 {[%emt 0:01:01]} Qc8 $2 {[%emt 0:11:36]} (18... Rb8 $16 19. Qxa7 Ra8) 19. Qd5 {[%emt 0:01:15]} Rb8 {[%emt 0:00:14]} 20. Qd6+ {[%emt 0:05:14]} Kg8 {[%emt 0:01:00]} 21. c6 {[%emt 0:02:37]} h6 {[%emt 0:02:03]} 22. Rac1 {[%emt 0:06:03]} Rb6 {[%emt 0:05:49]} 23. Qd5 {[%emt 0:07:13]} Kh7 {[%emt 0:09:23] [#]} 24. c7 $1 {[%emt 0:02:38]} Qa6 {[%emt 0:00:30]} 25. Qd7 {[%emt 0:03:37]} Qc8 {[%emt 0:02:15]} 26. Qxf7 {[%emt 0:01:02]} Rf8 {[%emt 0:00:09]} 27. Qe7 {[%emt 0:00:23]} Re6 {[%emt 0:02:38]} 28. Qc5 {[%emt 0:00:37]} Rfe8 $18 {[%emt 0:01:46]} 29. Qxa7 {[%emt 0:04:03]} Bf8 {[%emt 0:00:47]} 30. Qa4 {[%emt 0:00:46]} R8e7 {[%emt 0:00:48]} 31. Qc4 {[%emt 0:00:52]} Rb6 {[%emt 0:01:28]} 32. Rc2 {[%emt 0:01:34]} h5 {[%emt 0:01:42]} 33. Rfc1 {[%emt 0:00:53]} Bh6 {[%emt 0:00:17]} 34. Qc5 {[%emt 0:00:41]} Ree6 {[%emt 0:00:28]} 35. Rd1 {[%emt 0:01:03]} Ra6 {[%emt 0:01:35]} 36. Qd5 {[%emt 0:00:46]} Bf8 {[%emt 0:01:19]} 1-0

[Event "DEN-chT XtraCon 2018-19"]
[Site "Denmark"]
[Date "2018.11.18"]
[Round "3"]
[White "Vesterli, Michael E."]
[Black "Smith, Axel"]
[Result "0-1"]
[ECO "A04"]
[WhiteElo "2158"]
[BlackElo "2492"]
[Annotator "RC"]
[PlyCount "62"]
[EventDate "2018.10.27"]
[EventType "team-tourn"]
[EventCountry "DEN"]
[SourceTitle "playchess.com"]
[Source "ChessBase"]
[SourceQuality "1"]
[TimeControl "40/5400+30:1800+30"]

1. Nf3 {[%emt 0:00:00]} c5 {[%emt 0:00:05]} 2. g3 {[%emt 0:00:00]} Nc6 {[%emt 0:02:03]} 3. Bg2 {[%emt 0:00:00]} e5 {[%emt 0:02:58]} 4. d3 {[%emt 0:00:07]} d5 {[%emt 0:00:37]} 5. O-O {[%emt 0:00:12]} Nf6 {[%emt 0:00:38]} 6. e4 {[%emt 0:07:11]} Be7 {[%emt 0:01:46]} 7. Nc3 {[%emt 0:00:20]} d4 {[%emt 0:08:21]} 8. Ne2 {[%emt 0:00:22]} O-O {[%emt 0:00:27]} 9. Nh4 {[%emt 0:04:49]} g6 {[%emt 0:05:05]} 10. f4 {[%emt 0:04:01]} exf4 {[%emt 0:11:36]} 11. gxf4 {[%emt 0:00:10]} Nh5 {[%emt 0:02:58]} 12. Nf3 {[%emt 0:00:46]} f5 {[%emt 0:00:26]} 13. c3 {[%emt 0:24:54]} fxe4 {[%emt 0:09:27]} 14. dxe4 {[%emt 0:00:09]} d3 {[%emt 0:03:46]} 15. Qb3+ {[%emt 0:00:21]} Kh8 {[%emt 0:03:41]} 16. Rd1 {[%emt 0:01:05]} Bg4 {[%emt 0:15:29]} 17. Be3 {[%emt 0:03:49]} Qd7 {[%emt 0:00:07]} 18. Qc4 {[%emt 0:06:26]} Rad8 {[%emt 0:03:37]} 19. Bxc5 {[%emt 0:24:46]} Bxc5+ {[%emt 0:00:27]} 20. Qxc5 {[%emt 0:00:08]} Qg7 {[%emt 0:05:31]} 21. Ned4 {[%emt 0:03:54]} Nxf4 {[%emt 0:02:16]} 22. Nxc6 {[%emt 0:02:15]} bxc6 {[%emt 0:00:19]} 23. Rf1 {[%emt 0:00:46]} Nxg2 {[%emt 0:12:05]} 24. Kxg2 {[%emt 0:00:08]} d2 {[%emt 0:00:09]} 25. Nxd2 {[%emt 0:06:47]} Rxd2+ {[%emt 0:00:15]} 26. Kg3 {[%emt 0:00:04]} Rxf1 {[%emt 0:03:07]} 27. Rxf1 {[%emt 0:00:10]} Be6 {[%emt 0:00:24]} 28. Rf8+ {[%emt 0:01:22]} Bg8 {[%emt 0:00:04]} 29. Ra8 {[%emt 0:02:52]} Qc7+ {[%emt 0:01:39]} 30. Kf3 {[%emt 0:01:26]} Qf7+ {[%emt 0:00:08]} 31. Kg3 {[%emt 0:00:15]} Rd3+ {[%emt 0:01:20]} 0-1